[Event "GER-ch Youth-U14 2022"]
[Site "Willingen"]
[Date "2022.06.11"]
[Round "9.11"]
[White "Deschler, Arne"]
[Black "Luebke, Florentin"]
[Result "1/2-1/2"]
[ECO "B35"]
[WhiteElo "1646"]
[BlackElo "1613"]
[Annotator "NA RC COMBH"]
[PlyCount "117"]
[EventDate "2022.06.05"]
[EventType "swiss"]
[EventRounds "9"]
[EventCountry "GER"]
[SourceTitle "playchess.com"]
[Source "ChessBase"]
[SourceQuality "1"]
[TimeControl "40/4500+30:900+30"]

1. e4 {[%emt 0:00:00]} c5 {[%emt 0:00:00]} 2. Nf3 {[%emt 0:00:00]} g6 {[%emt 0:00:00]} 3. d4 {[%emt 0:00:00]} cxd4 {[%emt 0:00:00]} 4. Nxd4 {[%emt 0:00:00]} Nc6 {[%emt 0:00:00]} 5. Be3 {[%emt 0:00:00]} Bg7 {[%emt 0:00:00]} 6. Nc3 {[%emt 0:00:00]} Nf6 {[%emt 0:00:00]} 7. Bc4 {[%emt 0:00:00]} O-O {[%emt 0:00:00]} 8. O-O {[%emt 0:00:00]} d6 {[%emt 0:00:00]} 9. h3 {[%emt 0:00:00]} a6 {[%emt 0:00:00]} 10. Bb3 {[%emt 0:00:00]} Bd7 {[%emt 0:00:00]} 11. Re1 {[%emt 0:00:00]} b5 {[%emt 0:00:00]} 12. Nf3 {[%emt 0:01:28]} Rc8 {[%emt 0:01:42]} 13. Nd5 {[%emt 0:04:10]} Nxd5 {[%emt 0:01:55]} 14. exd5 {[%emt 0:00:21]} Ne5 {[%emt 0:00:40]} 15. Nxe5 {[%emt 0:01:07]} Bxe5 {[%emt 0:03:25]} 16. Bd4 {[%emt 0:05:14]} f6 {[%emt 0:05:50]} 17. c3 {[%emt 0:03:50]} Qc7 {[%emt 0:04:55]} 18. Be3 {[%emt 0:01:50]} f5 {[%emt 0:02:32]} 19. f4 {[%emt 0:02:31]} Bf6 {[%emt 0:00:29]} 20. Bd4 {[%emt 0:00:21]} Bxd4+ {[%emt 0:00:36]} 21. Qxd4 {[%emt 0:00:32]} Rfe8 {[%emt 0:00:55]} 22. Re3 {[%emt 0:09:03]} Qc5 {[%emt 0:00:33]} 23. Qd2 {[%emt 0:06:49]} a5 {[%emt 0:02:19]} 24. a3 {[%emt 0:02:02]} a4 {[%emt 0:01:50]} 25. Bc2 {[%emt 0:05:11]} e5 {[%emt 0:01:56]} 26. dxe6 {[%emt 0:03:25]} Rxe6 {[%emt 0:00:13]} 27. Rae1 {[%emt 0:00:23]} Rce8 {[%emt 0:00:25]} 28. Kf2 {[%emt 0:00:27]} Bc6 {[%emt 0:00:29]} 29. g3 {[%emt 0:01:38]} Be4 {[%emt 0:00:44]} 30. Bxe4 {[%emt 0:03:39]} Rxe4 {[%emt 0:02:19]} 31. Kf3 {[%emt 0:02:37]} d5 {[%emt 0:07:22]} 32. Qd3 {[%emt 0:04:02]} Qc4 {[%emt 0:00:47]} 33. Qd1 {[%emt 0:07:12]} Kf7 {[%emt 0:01:45]} 34. R1e2 {[%emt 0:00:59]} R8e6 {[%emt 0:06:20]} 35. Kf2 {[%emt 0:00:22]} Qc5 {[%emt 0:00:12]} 36. Qd3 {[%emt 0:00:44]} Ke7 {[%emt 0:00:29]} 37. Qd4 {[%emt 0:04:04]} Kd6 {[%emt 0:04:12]} 38. Qd3 {[%emt 0:13:04]} Kc7 {[%emt 0:01:03]} 39. Qd2 {[%emt 0:00:45]} h6 {[%emt 0:01:23]} 40. h4 {[%emt 0:01:25]} Qc4 {[%emt 0:00:45]} 41. Qd1 {[%emt 0:16:44]} Kc6 {[%emt 0:19:22]} 42. Qd2 {[%emt 0:00:00]} Kc5 {[%emt 0:00:00]} 43. Re1 {[%emt 0:00:00]} Kc6 {[%emt 0:00:00]} 44. Qc1 {[%emt 0:00:00]} Qc5 {[%emt 0:00:00]} 45. Qd2 {[%emt 0:00:00]} Rxe3 {[%emt 0:00:00]} 46. Rxe3 {[%emt 0:00:00]} Qxe3+ {[%emt 0:00:00]} 47. Qxe3 {[%emt 0:00:00]} Rxe3 {[%emt 0:00:00]} 48. Kxe3 {[%emt 0:00:00]} Kc5 {[%emt 0:00:00]} 49. Kd3 {[%emt 0:00:00]} h5 {[%emt 0:00:00]} 50. Kd2 {[%emt 0:00:00]} Kc4 {[%emt 0:00:00]} 51. Kc2 {[%emt 0:00:00]} d4 {[%emt 0:00:00]} 52. cxd4 {[%emt 0:00:00]} Kxd4 {[%emt 0:00:00]} 53. Kd2 {[%emt 0:00:00]} Kc4 {[%emt 0:00:00]} 54. Kc2 {[%emt 0:00:00]} b4 {[%emt 0:00:00]} 55. axb4 {[%emt 0:00:00]} Kxb4 {[%emt 0:00:00]} 56. Kd2 {[%emt 0:00:00]} Kb3 57. Kc1 Kc4 {[%emt 0:00:00]} 58. Kc2 {[%emt 0:00:00]} Kb4 {[%emt 0:00:00]} 59. Kd2 {[%emt 0:00:00]} 1/2-1/2

[Event "GER-ch Youth-U14 2022"]
[Site "Willingen"]
[Date "2022.06.11"]
[Round "9.12"]
[White "Kempe, Caius Emilian"]
[Black "Schwan, Aaron"]
[Result "1/2-1/2"]
[ECO "D31"]
[WhiteElo "1973"]
[BlackElo "1671"]
[Annotator "TA"]
[PlyCount "163"]
[EventDate "2022.06.05"]
[EventType "swiss"]
[EventRounds "9"]
[EventCountry "GER"]
[SourceTitle "playchess.com"]
[Source "ChessBase"]
[SourceQuality "1"]
[TimeControl "40/4500+30:900+30"]

{[%evp 19,163,-9,-12,-11,-19,-20,-25,-29,-9,-15,0,0,11,-11,-6,-9,-9,-40,-9,-9,-7,-5,-9,-8,-7,-7,-8,-14,-8,-10,0,-8,-8,-8,-8,-8,0,0,0,0,0,0,0,0,0,0,0,0,0,0,33,39,59,54,63,20,38,8,8,8,61,66,60,32,106,73,72,34,39,60,68,67,92,59,112,0,0,0,0,-12,-12,-12,-12,-12,-12,-12,0,-12,0,0,0,0,0,0,0,0,0,-9,-8,-9,-8,-8,0,-12,0,0,0,0,0,0,0,0,0,0,0,0,0,0,0,0,0,0,0,0,0,0,0,0,0,0,0,0,0,0,0,0,0,0,0,0,0,0,0,0,0,0]} 1. d4 {[%emt 0:00:00]} d5 {[%emt 0:00:00]} 2. c4 {[%emt 0:00:00]} e6 {[%emt 0:00:00]} 3. Nc3 {[%emt 0:00:00]} c6 {[%emt 0:00:00]} 4. cxd5 {[%emt 0:00:00]} exd5 {[%emt 0:00:00]} 5. Nf3 {[%emt 0:00:00]} Nf6 {[%emt 0:00:00]} 6. Bg5 {[%emt 0:00:00]} Be7 {[%emt 0:00:00]} 7. Qc2 {[%emt 0:00:00]} g6 {[%emt 0:00:00]} 8. e4 {[%emt 0:00:00]} dxe4 {[%emt 0:00:00]} 9. Bxf6 {[%emt 0:00:00]} Bxf6 {[%emt 0:00:00]} 10. Qxe4+ {[%emt 0:00:00]} Qe7 {[%emt 0:00:00]} (10... Kf8 {feels hotter.} 11. Bc4 Bf5 12. Qf4 Qe7+) 11. O-O-O {[%emt 0:00:00] D36: Queen's Gambit Declined: Exchange Variation: Main line (5 Bg5 c6 6 Qc2).} O-O {[%emt 0:00:00]} 12. Qxe7 {[%emt 0:00:00]} Bxe7 {[%emt 0:00:00]} 13. Bc4 {[%emt 0:00:00] [#] Black has an edge.} Bf5 $146 {[%emt 0:00:00]} ({Predecessor:} 13... Bg4 14. Rde1 Bb4 15. Ne5 Bc8 16. Nxf7 Rxf7 17. Re8+ Kg7 18. Rxc8 {1-0 (18) Poghosyan,S (2275)-Coe,W (2078) Chess.com INT 2020}) 14. Rhe1 {[%emt 0:00:00][%cal Bh1e1,Be1e4,Be4c4,Bc4f4][%mdl 32]} Bf6 {[%emt 0:00:34]} 15. h3 {[%emt 0:00:00]} h5 {[%emt 0:02:28] Prevents g4.} 16. Ne4 {[%emt 0:02:04]} (16. Rg1 $5 {[%cal Rg2g4]}) 16... Bxe4 {[%emt 0:22:19]} 17. Rxe4 {[%emt 0:00:31]} Nd7 {[%emt 0:00:13]} 18. d5 {[%emt 0:02:12]} cxd5 {[%emt 0:06:28]} 19. Bxd5 {[%emt 0:01:57]} Nc5 {[%emt 0:00:21]} 20. Rc4 {[%emt 0:02:44]} Rac8 {[%emt 0:00:40]} 21. Kb1 {[%emt 0:01:05]} b5 {[%emt 0:02:33]} 22. Rf4 {[%emt 0:03:46]} Kg7 {[%emt 0:02:45]} 23. g4 $1 {[%emt 0:04:18]} hxg4 {[%emt 0:01:20]} 24. hxg4 {[%emt 0:00:07]} Na4 {[%emt 0:02:29]} 25. g5 {[%emt 0:04:19]} Bxb2 {[%emt 0:09:18]} 26. Rxa4 {[%emt 0:00:35][%mdl 64] [#] Remove Defender} bxa4 {[%emt 0:00:02]} 27. Kxb2 {[%emt 0:00:01]} Rfd8 {[%emt 0:00:26]} 28. Rd3 $1 {[%emt 0:08:44]} a3+ {[%emt 0:07:05]} 29. Kb3 {[%emt 0:00:35]} ({But not} 29. Kxa3 $2 Rc5 30. Kb3 Rdxd5 $19) 29... Rc5 {[%emt 0:00:28]} 30. Bc4 {[%emt 0:01:29]} ({Wrong is} 30. Be4 $2 Rb8+ 31. Ka4 Rc4+ 32. Kxa3 Rxe4 $19) 30... Rb8+ {[%emt 0:00:54]} 31. Kc3 {[%emt 0:00:02]} Rbc8 {[%emt 0:02:19]} 32. Nd2 {[%emt 0:00:26]} Rxg5 {[%emt 0:02:04]} 33. Rd7 {[%emt 0:00:08][%csl LRa7,LRf7]} Rf5 {[%emt 0:01:17]} 34. f3 {[%emt 0:00:04]} Kh6 {[%emt 0:04:05]} 35. Rxa7 {[%emt 0:04:21]} Rf4 {[%emt 0:04:02]} 36. Rxa3 {[%emt 0:05:01]} f5 {[%emt 0:09:39]} 37. Ra4 {[%emt 0:01:55]} g5 {[%emt 0:00:26]} 38. Kd3 {[%emt 0:00:17]} Rd8+ {[%emt 0:00:39]} 39. Ke3 {[%emt 0:00:12]} Rfd4 {[%emt 0:01:24]} (39... Re8+ $11 40. Kf2 Rd8) 40. Nb3 $1 $14 {[%emt 0:00:41]} R4d6 {[%emt 0:01:41]} 41. Nc1 {[%emt 0:18:35]} Rd2 {[%emt 0:19:16]} (41... Re8+ $14 42. Kf2 g4) 42. Ra6+ {[%emt 0:03:06]} Kh5 {[%emt 0:01:30]} 43. Ne2 {[%emt 0:01:59] Bf7+ would kill now.} f4+ {[%emt 0:02:34]} 44. Kf2 {[%emt 0:00:15] White threatens Bf7+ and mate.} R2d6 {[%emt 0:00:22]} 45. Ra5 {[%emt 0:01:59]} Kg6 {[%emt 0:00:00]} 46. a4 {[%emt 0:00:00]} Rh8 {[#]} ({Black should play} 46... Rd1 $1 $14) 47. Re5 {[%emt 0:00:00]} (47. Bd5 $1 $16) 47... Rd1 $11 {[%emt 0:00:00][%cal Rh8h2] The position is equal.} 48. Kg2 {[%emt 0:00:00] Inhibits Rh2+.} Rdh1 {[%emt 0:00:00][%csl Gh1][%cal Rh8h2]} 49. Re6+ {[%emt 0:00:00]} Kg7 {[%emt 0:00:00][%csl Gh1][%cal Rh8h2]} 50. Re7+ {[%emt 0:00:00]} Kf8 {[%emt 0:00:00][%csl Gh1][%cal Rh8h2]} 51. Rf7+ {[%emt 0:00:00]} Ke8 {[%emt 0:00:00][%csl Gh1][%cal Rh8h2]} 52. Nxf4 $1 {[%emt 0:00:00] Ng6 is the strong threat.} R8h2+ {[%emt 0:00:00]} 53. Kg3 {[%emt 0:00:00] Threatens to win with Ng6.} gxf4+ {[%emt 0:00:00]} (53... Rc2 {looks sharper.} 54. Be6 Rg1+ 55. Kh3 gxf4 56. Rxf4 Ke7) 54. Rxf4 {[%emt 0:00:00][%mdl 4096] Endgame KRR-KRB} Rh3+ {[%emt 0:00:00]} 55. Kf2 {[%emt 0:00:00]} Rc1 {[%emt 0:00:00]} 56. Re4+ {[%emt 0:00:00]} Kd8 {[%emt 0:00:00]} 57. Rd4+ {[%emt 0:00:00]} Kc7 {[%emt 0:00:00]} 58. Bd5 {[%emt 0:00:00]} Kb6 {[%emt 0:00:00]} 59. Rc4 {[%emt 0:00:00]} Rd1 {[%emt 0:00:00]} 60. Be4 {[%emt 0:00:00]} Rh8 {[%emt 0:00:00]} 61. Bc6 {[%emt 0:00:29]} Rd6 {[%emt 0:00:00][%mdl 1024] Black has compensation.} 62. Bb5 {[%emt 0:00:13]} Rf8 {[%emt 0:00:00]} 63. f4 {[%emt 0:01:05]} Rf5 {[%emt 0:00:00]} 64. Kf3 {[%emt 0:00:31]} Rdf6 {[%emt 0:00:00]} 65. Kg4 {[%emt 0:01:57]} Rd5 {[%emt 0:00:00]} 66. Rc2 {[%emt 0:02:01]} Rg6+ {[%emt 0:00:44]} 67. Kf3 {[%emt 0:00:06]} Rf6 {[%emt 0:02:12]} 68. Rf2 {[%emt 0:00:46]} Kc7 {[%emt 0:00:46]} 69. Ke4 {[%emt 0:02:29]} Kd6 {[%emt 0:00:48]} 70. Rc2 {[%emt 0:00:46]} Re6+ {[%emt 0:01:07]} 71. Kf3 {[%emt 0:00:05] And now Rc6+ would win.} Re1 {[%emt 0:00:48]} 72. Rc8 {[%emt 0:00:43]} Ra1 {[%emt 0:01:47]} 73. Rd8+ {[%emt 0:02:44]} Kc5 {[%emt 0:00:02]} 74. Rf8 {[%emt 0:00:23]} Kd6 {[%emt 0:00:45]} 75. Bc4 {[%emt 0:05:20]} Rc5 {[%emt 0:00:59]} 76. Bb5 {[%emt 0:01:32]} Ke7 {[%emt 0:00:15]} 77. Re8+ {[%emt 0:00:32]} Kf7 {[%emt 0:00:04][%cal Oc5b5] Hoping for ...Rxb5!} 78. Re3 {[%emt 0:01:08]} Kf6 {[%emt 0:00:33]} 79. Ke4 {[%emt 0:00:28]} Rd1 {[%emt 0:01:07]} 80. Bd3 {[%emt 0:00:56]} Ra5 {[%emt 0:00:54]} 81. Bb5 {[%emt 0:00:31]} Ra7 {[%emt 0:00:01]} 82. Kf3 {[%emt 0:01:23] Weighted Error Value: White=0.09 (flawless) /Black=0.09 (flawless)} 1/2-1/2

[Event "GER-ch Youth-U14 2022"]
[Site "Willingen"]
[Date "2022.06.11"]
[Round "9.13"]
[White "Sauer, Tim"]
[Black "Mader, Fabian"]
[Result "1-0"]
[ECO "B33"]
[WhiteElo "1769"]
[BlackElo "1652"]
[Annotator "NA RC COMBH"]
[PlyCount "73"]
[EventDate "2022.06.05"]
[EventType "swiss"]
[EventRounds "9"]
[EventCountry "GER"]
[SourceTitle "playchess.com"]
[Source "ChessBase"]
[SourceQuality "1"]
[TimeControl "40/4500+30:900+30"]

1. e4 {[%emt 0:00:00]} c5 {[%emt 0:00:00]} 2. Nf3 {[%emt 0:00:00]} Nc6 {[%emt 0:00:00]} 3. d4 {[%emt 0:00:00]} cxd4 {[%emt 0:00:00]} 4. Nxd4 {[%emt 0:00:00]} Nf6 {[%emt 0:00:00]} 5. Nc3 {[%emt 0:00:00]} e5 {[%emt 0:00:00]} 6. Ndb5 {[%emt 0:00:00]} d6 {[%emt 0:00:00]} 7. Bg5 {[%emt 0:00:00]} a6 {[%emt 0:00:00]} 8. Na3 {[%emt 0:00:00]} b5 {[%emt 0:00:00]} 9. Bxf6 {[%emt 0:00:00]} gxf6 {[%emt 0:00:00]} 10. Nd5 {[%emt 0:00:00]} f5 {[%emt 0:00:00]} 11. Bd3 {[%emt 0:00:00]} Be6 {[%emt 0:00:00]} 12. c3 {[%emt 0:00:00]} Rg8 {[%emt 0:00:00]} 13. g3 {[%emt 0:00:00]} Bg7 {[%emt 0:00:13]} 14. Nxb5 {[%emt 0:00:00]} Bxd5 {[%emt 0:08:30]} 15. exd5 {[%emt 0:00:00]} Ne7 {[%emt 0:00:33]} 16. Na3 {[%emt 0:00:00]} Qa5 {[%emt 0:03:37]} 17. Bc4 {[%emt 0:00:00]} e4 {[%emt 0:02:08]} 18. Qb3 {[%emt 0:11:00]} f6 {[%emt 0:16:46]} 19. Nc2 {[%emt 0:12:20]} Kf7 {[%emt 0:05:59]} 20. Qb4 {[%emt 0:02:39]} Qc7 {[%emt 0:01:27]} 21. Qa4 {[%emt 0:00:35]} Rgb8 {[%emt 0:06:28]} 22. Bb3 {[%emt 0:03:06]} Ng6 {[%emt 0:01:54]} 23. Nd4 {[%emt 0:21:48]} Ne5 {[%emt 0:08:05]} 24. Rd1 {[%emt 0:05:21]} Nd3+ {[%emt 0:05:19]} 25. Rxd3 {[%emt 0:00:05]} exd3 {[%emt 0:00:05]} 26. Kd2 {[%emt 0:00:20]} Qc5 {[%emt 0:05:45]} 27. Re1 {[%emt 0:11:01]} Rb7 {[%emt 0:09:48]} 28. Kxd3 {[%emt 0:01:04]} Rab8 {[%emt 0:03:36]} 29. Re2 {[%emt 0:05:05]} Bf8 {[%emt 0:03:32]} 30. Qxa6 {[%emt 0:04:28]} Rxb3 {[%emt 0:01:44]} 31. axb3 {[%emt 0:00:20]} Qxd5 {[%emt 0:00:25]} 32. Qc4 {[%emt 0:00:25]} Qxc4+ {[%emt 0:00:23]} 33. Kxc4 {[%emt 0:00:46]} Rc8+ {[%emt 0:01:20]} 34. Kb5 {[%emt 0:01:26]} d5 {[%emt 0:00:31]} 35. Nxf5 {[%emt 0:02:31]} Rb8+ {[%emt 0:00:23]} 36. Kc6 {[%emt 0:00:36]} Rxb3 {[%emt 0:00:34]} 37. Nd4 {[%emt 0:00:22]} 1-0

[Event "GER-ch Youth-U14 2022"]
[Site "Willingen"]
[Date "2022.06.11"]
[Round "9.14"]
[White "Winkler, Yonathan"]
[Black "Jahnz, Laurin"]
[Result "1/2-1/2"]
[ECO "B10"]
[WhiteElo "1699"]
[BlackElo "1681"]
[Annotator "NA RC COMBH"]
[PlyCount "44"]
[EventDate "2022.06.05"]
[EventType "swiss"]
[EventRounds "9"]
[EventCountry "GER"]
[SourceTitle "playchess.com"]
[Source "ChessBase"]
[SourceQuality "1"]
[TimeControl "40/4500+30:900+30"]

1. e4 {[%emt 0:00:00]} c6 {[%emt 0:00:00]} 2. Nf3 {[%emt 0:00:00]} d5 {[%emt 0:00:00]} 3. Nc3 {[%emt 0:00:00]} dxe4 {[%emt 0:00:00]} 4. Nxe4 {[%emt 0:00:00]} Nf6 {[%emt 0:00:00]} 5. Qe2 {[%emt 0:00:00]} Nxe4 {[%emt 0:00:00]} 6. Qxe4 {[%emt 0:00:00]} Qd5 {[%emt 0:00:00]} 7. Qxd5 {[%emt 0:00:00]} cxd5 {[%emt 0:00:00]} 8. d4 {[%emt 0:00:00]} Nc6 {[%emt 0:00:00]} 9. c3 {[%emt 0:00:00]} g6 {[%emt 0:00:00]} 10. Bd3 {[%emt 0:00:00]} Bg7 {[%emt 0:00:00]} 11. O-O {[%emt 0:00:00]} O-O {[%emt 0:00:00]} 12. h3 {[%emt 0:00:00]} f6 {[%emt 0:00:00]} 13. Bc2 {[%emt 0:00:00]} Be6 {[%emt 0:00:00]} 14. Re1 {[%emt 0:08:16]} Bf7 {[%emt 0:00:00]} 15. Bb3 {[%emt 0:00:21]} b5 {[%emt 0:14:55]} 16. Bf4 {[%emt 0:04:18]} Rfe8 {[%emt 0:06:37]} 17. Bg3 {[%emt 0:00:59]} a5 {[%emt 0:02:48]} 18. a3 {[%emt 0:01:53]} a4 {[%emt 0:05:23]} 19. Ba2 {[%emt 0:00:58]} Na5 {[%emt 0:00:49]} 20. Re2 {[%emt 0:03:04]} Nc4 {[%emt 0:04:27]} 21. Rae1 {[%emt 0:00:45]} Bf8 {[%emt 0:18:12]} 22. Nh2 {[%emt 0:07:05]} Kg7 {[%emt 0:03:49]} 1/2-1/2

[Event "GER-ch Youth-U14 2022"]
[Site "Willingen"]
[Date "2022.06.11"]
[Round "9.15"]
[White "Uhlmann, Tim"]
[Black "Kieselbach, Jannik"]
[Result "1/2-1/2"]
[ECO "B54"]
[WhiteElo "1776"]
[BlackElo "1631"]
[Annotator "NA RC COMBH"]
[PlyCount "114"]
[EventDate "2022.06.05"]
[EventType "swiss"]
[EventRounds "9"]
[EventCountry "GER"]
[SourceTitle "playchess.com"]
[Source "ChessBase"]
[SourceQuality "1"]
[TimeControl "40/4500+30:900+30"]

1. e4 {[%emt 0:00:00]} c5 {[%emt 0:00:00]} 2. Nf3 {[%emt 0:00:00]} d6 {[%emt 0:00:00]} 3. d4 {[%emt 0:00:00]} cxd4 {[%emt 0:00:00]} 4. Nxd4 {[%emt 0:00:00]} Nf6 {[%emt 0:00:00]} 5. f3 {[%emt 0:00:00]} a6 {[%emt 0:00:00]} 6. c4 {[%emt 0:00:00]} Nc6 {[%emt 0:00:00]} 7. Be3 {[%emt 0:00:00]} e6 {[%emt 0:00:00]} 8. Nc3 {[%emt 0:00:00]} Be7 {[%emt 0:00:00]} 9. Qd2 {[%emt 0:00:00]} O-O {[%emt 0:00:00]} 10. Be2 {[%emt 0:00:00]} d5 {[%emt 0:02:42]} 11. Nxc6 {[%emt 0:00:00]} bxc6 {[%emt 0:00:09]} 12. cxd5 {[%emt 0:00:00]} cxd5 {[%emt 0:00:40]} 13. exd5 {[%emt 0:00:00]} Nxd5 {[%emt 0:00:33]} 14. Nxd5 {[%emt 0:00:00]} Qxd5 {[%emt 0:00:52]} 15. Qxd5 {[%emt 0:00:00]} exd5 {[%emt 0:00:09]} 16. Rd1 {[%emt 0:00:00]} Be6 {[%emt 0:05:02]} 17. b3 {[%emt 0:00:00]} Rfb8 {[%emt 0:05:21]} 18. Kf2 {[%emt 0:06:17]} a5 {[%emt 0:10:22]} 19. Rb1 {[%emt 0:06:25]} Ba3 {[%emt 0:01:08]} 20. Bd3 {[%emt 0:01:27]} Rc8 {[%emt 0:08:03]} 21. Rhd1 {[%emt 0:11:23]} Rc6 {[%emt 0:15:53]} 22. Bd4 {[%emt 0:04:37]} g6 {[%emt 0:04:31]} 23. Rd2 {[%emt 0:02:41]} Rac8 {[%emt 0:02:19]} 24. g4 {[%emt 0:10:32]} Kf8 {[%emt 0:12:12]} 25. Rbd1 {[%emt 0:09:44]} Rc1 {[%emt 0:00:47]} 26. Rxc1 {[%emt 0:04:15]} Rxc1 {[%emt 0:00:08]} 27. Rc2 {[%emt 0:00:41]} Rxc2+ {[%emt 0:01:06]} 28. Bxc2 {[%emt 0:00:05]} Bb4 {[%emt 0:01:18]} 29. Ke3 {[%emt 0:06:35]} Ke7 {[%emt 0:01:16]} 30. h3 {[%emt 0:01:52]} Kd6 {[%emt 0:03:51]} 31. f4 {[%emt 0:00:25]} Be1 {[%emt 0:00:35]} 32. Ke2 {[%emt 0:03:19]} Bb4 {[%emt 0:00:19]} 33. Ke3 {[%emt 0:02:48]} Be1 {[%emt 0:00:38]} 34. a3 {[%emt 0:00:13]} Kc6 {[%emt 0:00:41]} 35. Bd3 {[%emt 0:05:24]} Bh4 {[%emt 0:01:52]} 36. b4 {[%emt 0:02:56]} axb4 {[%emt 0:00:28]} 37. axb4 {[%emt 0:00:04]} Bd8 {[%emt 0:00:33]} 38. f5 {[%emt 0:05:29]} Bc8 {[%emt 0:00:39]} 39. Bc5 {[%emt 0:03:50]} Bg5+ {[%emt 0:03:37]} 40. Kf3 {[%emt 0:02:17]} Bd2 {[%emt 0:00:44]} 41. Kg3 {[%emt 0:16:52]} Be1+ {[%emt 0:15:40]} 42. Kf3 {[%emt 0:00:41]} Bd7 {[%emt 0:04:24]} 43. Be7 {[%emt 0:00:00]} Kc7 {[%emt 0:00:00]} 44. Ke3 {[%emt 0:00:00]} Ba4 {[%emt 0:00:00]} 45. Kd4 {[%emt 0:00:00]} Bb3 {[%emt 0:00:00]} 46. fxg6 {[%emt 0:00:00]} fxg6 {[%emt 0:00:00]} 47. g5 {[%emt 0:00:00]} Kd7 {[%emt 0:00:00]} 48. Bc5 {[%emt 0:00:00]} Bd2 {[%emt 0:00:00]} 49. h4 {[%emt 0:00:00]} Be1 {[%emt 0:00:00]} 50. h5 {[%emt 0:00:00]} Bd2 {[%emt 0:00:00]} 51. hxg6 {[%emt 0:00:00]} hxg6 {[%emt 0:00:00]} 52. Bxg6 {[%emt 0:00:00]} Bxg5 {[%emt 0:00:00]} 53. Bf7 {[%emt 0:00:00]} Bf6+ {[%emt 0:00:00]} 54. Ke3 {[%emt 0:00:00]} d4+ {[%emt 0:00:00]} 55. Bxd4 {[%emt 0:00:00]} Bxd4+ {[%emt 0:00:00]} 56. Kxd4 {[%emt 0:00:00]} Bxf7 {[%emt 0:00:00]} 57. Kc5 {[%emt 0:00:00]} Bh5 {[%emt 0:00:00]} 1/2-1/2

[Event "GER-ch Youth-U14 2022"]
[Site "Willingen"]
[Date "2022.06.11"]
[Round "9.16"]
[White "Braeutigam, Alexander"]
[Black "Chinguun Sundui"]
[Result "1/2-1/2"]
[ECO "D10"]
[WhiteElo "1749"]
[BlackElo "1731"]
[Annotator "NA RC COMBH"]
[PlyCount "61"]
[EventDate "2022.06.05"]
[EventType "swiss"]
[EventRounds "9"]
[EventCountry "GER"]
[SourceTitle "playchess.com"]
[Source "ChessBase"]
[SourceQuality "1"]
[TimeControl "40/4500+30:900+30"]

1. d4 d5 {[%emt 0:00:00]} 2. c4 {[%emt 0:00:00]} c6 {[%emt 0:00:00]} 3. Nc3 {[%emt 0:00:00]} Nf6 {[%emt 0:00:00]} 4. cxd5 {[%emt 0:00:00]} cxd5 {[%emt 0:00:00]} 5. Nf3 {[%emt 0:00:00]} Nc6 {[%emt 0:00:00]} 6. Bf4 {[%emt 0:00:00]} a6 {[%emt 0:00:00]} 7. e3 {[%emt 0:00:00]} e6 {[%emt 0:00:00]} 8. Be2 {[%emt 0:00:00]} Bd6 {[%emt 0:00:00]} 9. Bxd6 {[%emt 0:00:00]} Qxd6 {[%emt 0:00:00]} 10. a3 {[%emt 0:00:00]} b5 {[%emt 0:00:00]} 11. b4 {[%emt 0:00:00]} O-O {[%emt 0:00:00]} 12. O-O {[%emt 0:00:00]} Ne4 {[%emt 0:00:00]} 13. Qc2 {[%emt 0:00:00]} f5 {[%emt 0:00:00]} 14. Nd2 {[%emt 0:00:00]} Bd7 {[%emt 0:00:00]} 15. f4 {[%emt 0:02:14]} Qe7 {[%emt 0:01:47]} 16. Nb3 {[%emt 0:05:57]} Rfc8 {[%emt 0:03:26]} 17. Nc5 {[%emt 0:00:34]} Nf6 {[%emt 0:04:30]} 18. Rfb1 {[%emt 0:03:17]} Ng4 {[%emt 0:09:22]} 19. Qd2 {[%emt 0:03:53]} Qd6 {[%emt 0:13:22]} 20. a4 {[%emt 0:02:10]} Na7 {[%emt 0:02:44]} 21. axb5 {[%emt 0:03:47]} Nxb5 {[%emt 0:03:56]} 22. Nxb5 {[%emt 0:00:47]} Bxb5 {[%emt 0:01:42]} 23. Bxb5 {[%emt 0:00:17]} axb5 {[%emt 0:00:12]} 24. h3 {[%emt 0:00:29]} Nf6 {[%emt 0:00:19]} 25. Qb2 {[%emt 0:01:27]} Ne4 {[%emt 0:01:16]} 26. Ra3 {[%emt 0:00:48]} g5 {[%emt 0:08:41]} 27. Rf1 {[%emt 0:12:24]} Rxa3 {[%emt 0:06:57]} 28. Qxa3 {[%emt 0:00:07]} Nd2 {[%emt 0:00:22]} 29. Re1 {[%emt 0:00:44]} Ne4 {[%emt 0:02:21]} 30. Rf1 {[%emt 0:07:52]} Nd2 {[%emt 0:12:18]} 31. Re1 1/2-1/2

[Event "GER-ch Youth-U14 2022"]
[Site "Willingen"]
[Date "2022.06.11"]
[Round "9.17"]
[White "Weyerer, Noah"]
[Black "Vihan, Shourya"]
[Result "1-0"]
[ECO "D00"]
[WhiteElo "1555"]
[BlackElo "1385"]
[Annotator "NA RC COMBH"]
[PlyCount "45"]
[EventDate "2022.06.05"]
[EventType "swiss"]
[EventRounds "9"]
[EventCountry "GER"]
[SourceTitle "playchess.com"]
[Source "ChessBase"]
[SourceQuality "1"]
[TimeControl "40/4500+30:900+30"]

1. d4 {[%emt 0:00:00]} d5 {[%emt 0:00:00]} 2. Bf4 {[%emt 0:00:00]} Nf6 {[%emt 0:00:00]} 3. e3 {[%emt 0:00:00]} c5 {[%emt 0:00:00]} 4. c3 {[%emt 0:00:00]} cxd4 {[%emt 0:00:00]} 5. exd4 {[%emt 0:00:00]} Qb6 {[%emt 0:00:00]} 6. Qb3 {[%emt 0:00:00]} Bf5 {[%emt 0:00:00]} 7. Na3 {[%emt 0:00:00]} e6 {[%emt 0:04:22]} 8. Nb5 {[%emt 0:00:00]} Na6 {[%emt 0:01:37]} 9. Qa4 {[%emt 0:00:00]} Nd7 {[%emt 0:04:43]} 10. Nf3 {[%emt 0:00:07]} Qc6 {[%emt 0:07:29]} 11. Ne5 {[%emt 0:05:04]} Nxe5 {[%emt 0:08:54]} 12. Bxe5 {[%emt 0:00:34]} Kd8 {[%emt 0:02:14]} 13. Qb3 {[%emt 0:04:22]} f6 {[%emt 0:03:11]} 14. Bg3 {[%emt 0:00:38]} g5 {[%emt 0:05:55]} 15. a4 {[%emt 0:02:45]} h5 {[%emt 0:00:54]} 16. h4 {[%emt 0:04:21]} g4 {[%emt 0:00:34]} 17. Be2 {[%emt 0:02:58]} Bh7 {[%emt 0:03:03]} 18. O-O {[%emt 0:02:51]} Be7 {[%emt 0:02:12]} 19. c4 {[%emt 0:05:23]} Rf8 {[%emt 0:03:38]} 20. cxd5 {[%emt 0:00:38]} exd5 {[%emt 0:01:42]} 21. Rac1 {[%emt 0:01:54]} Qd7 {[%emt 0:00:11]} 22. Nxa7 {[%emt 0:04:01]} f5 {[%emt 0:01:44]} 23. Qb6+ {[%emt 0:04:14]} 1-0